Cogmind - Beta 15 @@@ ROGUE MODE // 2025.09.05 @ 23:55:46 Player: Dysmondo Result: Destroyed by G-34 Mercenary with Small Laser Performance ------------- Evolutions (0) 0 Regions Visited (2) 400 Robots Destroyed (32) 160 Value Destroyed (386) 386 Prototype IDs (3) 60 Alien Tech Used (0) 0 Bonus (0) 0 TOTAL SCORE: 1006 Bonus ------- None Cogmind --------- Core Integrity 0/250 Matter 278/300 Energy 125/125 System Corruption 0% Temperature Cool (6) Movement Treading (160) Location -10/Mines Parts ------- > --- POWER (1) -------- Light Ion Engine > --- PROPULSION (2) --- Light Treads Light Treads > --- UTILITY (2) ------ Small Storage Unit Light Armor Plating > --- WEAPON (2) ------- Light Assault Rifle > --- INVENTORY (8) ---- Light Ion Engine Light Treads Targeting Computer ECM Suite Light Armor Plating Rocket Launcher Peak State ------------ > --- POWER ------------ Light Ion Engine > --- PROPULSION ------- Light Treads Light Treads > --- UTILITY ---------- Small Storage Unit Improved Terrain Scanner > --- WEAPON ----------- Assault Rifle Light Assault Rifle > --- INVENTORY -------- Light Ion Engine Aluminum Leg Aluminum Leg Seismic Detector Tractor Beam [Rating: 9] Favorites ----------- Power Light Ion Engine Engine Light Ion Engine Propulsion Light Treads Treads Light Treads Utility Small Storage Unit Device ECM Suite Storage Small Storage Unit Protection Light Armor Plating Weapon Light Assault Rifle Ballistic Gun Light Assault Rifle Build | -11 -10 -10 ------- Run | Yrd Mat Min Slots Evolved . | . . . Power . | . . . Propulsion . | . . . Utility . | . . . Weapon . | . . . Parts Attached 15 | 8 2 5 Power 4 | 1 1 2 Engine 4 | 1 1 2 Core . | . . . Reactor . | . . . Propulsion 4 | 2 . 2 Treads 4 | 2 . 2 Leg . | . . . Wheel . | . . . Hover . | . . . Flight . | . . . Utility 5 | 3 1 1 Device 3 | 2 1 . Storage 1 | 1 . . Processor . | . . . Hackware . | . . . Protection 1 | . . 1 Artifact . | . . . Weapon 2 | 2 . . Energy Gun . | . . . Energy Cannon . | . . . Ballistic Gun 2 | 2 . . Ballistic Cannon . | . . . Launcher . | . . . Special Weapon . | . . . Impact Weapon . | . . . Slashing Weapon . | . . . Piercing Weapon . | . . . Special Melee Weapon . | . . . Unidentified Prototypes . | . . . Parts Lost 4 | . 1 3 Power 2 | . 1 1 Propulsion 1 | . . 1 Utility . | . . . Weapon 1 | . . 1 Highest Loss Streak 2 | . 1 2 To Critical Strikes . | . . . Average Backups 6 | 5 7 6 Power 1 | 1 2 1 Propulsion 1 | 1 2 1 Utility 2 | 1 2 3 Weapon . | . . . Tool/Special . | . . . Unused Backups 8 | . 4 4 Power 2 | . 1 1 Propulsion 2 | . 2 . Utility 3 | . 1 2 Weapon 1 | . . 1 Tool/Special . | . . . Average Slot Usage (%) 99 | . 99 98 Engine 13 | . 14 13 Treads 27 | . 28 27 Device 13 | . 14 13 Storage 14 | . 14 14 Ballistic Gun 27 | . 27 28 Peak Build Rating 9 | 9 8 7 Average Rating 6 | 6 7 6 On Entrance 4 | . 7 7 Naked Turns . | . . . Heaviest Build 14 | 12 13 14 Greatest Support 40 | 40 40 40 Greatest Overweight (x) . | . . . Average Overweight (x) . | . . . Largest Inventory Capacity 8 | 8 8 8 Average Capacity 7 | 7 8 8 Most Carried 8 | 7 8 8 Average Carried 6 | 5 7 6 Final Capacity 8 | 8 8 8 Final Carried 7 | 7 7 6 Class Distribution -------------------- 100% | Mutant Dominant Class ---------------- Mutant | -10/Materials Mutant | -10/Mines Resources | -11 -10 -10 ----------- Run | Yrd Mat Min Matter Collected 715 | 384 193 138 Remotely . | . . . Salvage Created 903 | 270 373 260 Parts 63 | 29 16 18 Haulers Intercepted . | . . . Recyclers Shooed 2 | . 1 1 Parts Field Recycled . | . . . Retrieved Matter . | . . . Parts Self-Destructed . | . . . Prevented . | . . . Kills | -11 -10 -10 ------- Run | Yrd Mat Min Combat Hostiles Destroyed 13 | . 8 5 Guns 13 | . 8 5 Classes Destroyed 7 | 3 4 . Worker 6 | 4 2 . Builder 2 | . 1 1 Tunneler 7 | 6 . 1 Recycler 3 | 1 1 1 Watcher 1 | . 1 . Swarmer 7 | . 4 3 Grunt 6 | . 4 2 Best Kill Streak 5 | 2 5 3 Combat Bots Only 2 | . 2 2 Max Kills in Single Turn 1 | 1 1 1 Gunslinging . | . . . Exploded . | . . . Melee . | . . . Uniques/NPCs Destroyed . | . . . Combat | -11 -10 -10 -------- Run | Yrd Mat Min Hostile Shots Fired 138 | . 54 84 Missed 47 | . 20 27 Hits 91 | . 34 57 Projectile 91 | . 34 57 Damage Taken 963 | . 373 590 Core 252 | . 76 176 Absorbed by Shields . | . . . Regen/Repaired (Parts) 87 | . 87 . Core Remaining (%) 100 | 100 . . Volleys Fired 99 | 26 42 31 Largest 2 | 2 2 2 Hottest 40 | 40 40 40 Shots Fired 198 | 52 84 62 Gun 198 | 52 84 62 Cannon . | . . . Launcher . | . . . Special . | . . . Kinetic 198 | 52 84 62 Thermal . | . . . Explosive . | . . . Electromagnetic . | . . . Robot Hit Streak 8 | 8 6 7 Robot Miss Streak 5 | 4 5 2 Penetration Max . | . . . Secondary Targets 2 | . 1 1 Max Gunslinging Chain 1 | . 1 1 Shots Hit Robots 116 | 31 44 41 Core Hits 58 | 15 23 20 Critical Kills 1 | 1 . . Critical Parts Destroyed . | . . . Critical Strikes 1 | 1 . . Destroy 1 | 1 . . Melee Attacks . | . . . Impact . | . . . Slashing . | . . . Piercing . | . . . Sneak Attacks . | . . . Combat Hostiles . | . . . Follow-up Attacks . | . . . Damage Inflicted 1262 | 350 476 436 Guns 1262 | 350 476 436 Cannons . | . . . Explosions . | . . . Melee . | . . . Ramming . | . . . Kinetic 1262 | 350 476 436 Thermal . | . . . Explosive . | . . . Electromagnetic . | . . . Impact . | . . . Slashing . | . . . Piercing . | . . . Highest Corruption . | . . . Average Corruption . | . . . Corruption Purged . | . . . Corruption Blocked . | . . . Overload Shots . | . . . Overflow Damage . | . . . Projectiles . | . . . Explosions . | . . . Melee . | . . . Knockbacks . | . . . Impact . | . . . Kinetic . | . . . Secondary . | . . . Self-Inflicted Damage . | . . . Shots . | . . . Rammed . | . . . Targets Rammed . | . . . Kicked . | . . . Crushed . | . . . Highest Temperature 12 | . 12 10 Average Temperature 6 | . 6 5 Received Heat Transfer 342 | . 150 192 Siege Activations . | . . . Martial Activations . | . . . Shielding Activations . | . . . Robots Disrupted . | . . . Combat Hostiles . | . . . Robots Corrupted . | . . . Combat Hostiles . | . . . Parts Fried . | . . . Impact Corruptions . | . . . Robots Melted . | . . . Combat Hostiles . | . . . Parts Melted . | . . . Heat Transferred . | . . . Parts Sabotaged . | . . . Parts Stolen . | . . . Parts Stripped . | . . . Power Chain Reactions . | . . . Alert | -11 -10 -10 ------- Run | Yrd Mat Min Maximum Alert Level . | . . . Low Security (%) 100 | 100 100 100 Level 1 . | . . . Level 2 . | . . . Level 3 . | . . . Level 4 . | . . . Level 5 . | . . . High Security . | . . . Max Security . | . . . Peak Influence 82 | 10 82 50 Initial . | . . . Average 13 | 1 20 13 Influence Increases 425 | 55 235 135 Destroy 0b10 Robot/C 260 | . 160 100 Destroy 0b10 Robot/NC 95 | 55 25 15 Destroy Leader 52 | . 32 20 Successful Hack 18 | . 18 . Influence Decreases 425 | 55 235 135 Time Decay 405 | 55 225 125 Lost Part 20 | . 10 10 Squads Dispatched 4 | . 4 . Investigation 2 | . 2 . Extermination . | . . . Reinforcement 2 | . 2 . Assault . | . . . Garrison . | . . . Intercept . | . . . Searches Triggered . | . . . Construction Impeded . | . . . Haulers Reinforced . | . . . Active Scanning Responses . | . . . Cargo Convoy Interrupts . | . . . Stealth | -11 -10 -10 --------- Run | Yrd Mat Min Distress Signals 3 | . 3 . Communications Jammed . | . . . Distress Signals . | . . . Times Spotted 42 | . 25 17 Peak Tracking Total 4 | . 4 4 Tactical Retreats 8 | . 3 5 Traps | -11 -10 -10 ------- Run | Yrd Mat Min Traps Triggered 1 | . 1 . Indirectly . | . . . Trap Hack Attempts . | . . . Triggered . | . . . Disarmed . | . . . Reprogrammed . | . . . Reused . | . . . Traps Extracted . | . . . Installed . | . . . Triggered . | . . . Machines | -11 -10 -10 ---------- Run | Yrd Mat Min Machines Disabled . | . . . Max in Single Turn . | . . . Machines Repaired . | . . . Machines Dismantled . | . . . Machines Sabotaged . | . . . Overloaded Fab Kills . | . . . Hacking | -11 -10 -10 --------- Run | Yrd Mat Min Machines Accessed 5 | . 5 . Terminals 4 | . 4 . Fabricators . | . . . Repair Stations 1 | . 1 . Recycling Units . | . . . Scanalyzers . | . . . Garrison Access . | . . . Total Hacks 16 | . 16 . Successful 11 | . 11 . Failed 5 | . 5 . Catastrophic 1 | . 1 . Database Lockouts . | . . . Manual 1 | . 1 . Terminals 14 | . 14 . Fabricators . | . . . Repair Stations 2 | . 2 . Recycling Units . | . . . Scanalyzers . | . . . Garrison Access . | . . . Terminal Hacks 9 | . 9 . Record 5 | . 5 . Prototype ID Bank 2 | . 2 . Security Status 1 | . 1 . Hauler Manifests 1 | . 1 . Fabricator Hacks . | . . . Repair Station Hacks 2 | . 2 . Scan Component 1 | . 1 . Repair 1 | . 1 . Recycling Unit Hacks . | . . . Scanalyzer . | . . . Garrison Access Hacks . | . . . Unauthorized Hacks . | . . . Terminals . | . . . Fabricators . | . . . Repair Stations . | . . . Recycling Units . | . . . Scanalyzers . | . . . Garrison Access . | . . . Data Cores Recovered . | . . . Used . | . . . Hacking Detections 4 | . 4 . Full Trace Events 1 | . 1 . Feedback Events . | . . . Feedback Blocked . | . . . Robot Schematics Acquired . | . . . Robots Built . | . . . Authchips . | . . . Time . | . . . Total Robot Build Rating . | . . . Part Schematics Acquired . | . . . Parts Built . | . . . Authchips . | . . . Time . | . . . Total Part Build Rating . | . . . Parts Repaired 1 | . 1 . Time 26 | . 26 . Parts Recycled . | . . . Recycled Matter . | . . . Retrieved Matter . | . . . Retrieved Components . | . . . Parts Scanalyzed . | . . . Part Schematics Acquired . | . . . Parts Damaged . | . . . Bothacking | -11 -10 -10 ------------ Run | Yrd Mat Min Used RIF Installer . | . . . Robots Hacked . | . . . Non-combat . | . . . Combat . | . . . Robot Hacks Applied . | . . . Relay Couplers Released . | . . . Fabnet Peak Effective % . | . . . Robots Rewired . | . . . Allies Hacked . | . . . Hacks Repelled . | . . . Allies | -11 -10 -10 -------- Run | Yrd Mat Min Total Allies . | . . . Largest Group . | . . . Highest-Rated Group . | . . . Highest-Rated Ally . | . . . Total Orders . | . . . Ally Attacks . | . . . Total Damage . | . . . Kills . | . . . Allies Corrupted . | . . . Allies Melted . | . . . Intel | -11 -10 -10 ------- Run | Yrd Mat Min Active Infowar (turns) 2072 | 438 1085 549 Terrain 41 | 41 . . Seismic 472 | 397 75 . ECM 1559 | . 1010 549 Robot Analysis Total . | . . . Derelict Logs Recovered 1 | . . 1 Drone Launches . | . . . Drone Recoveries . | . . . Exploration | -11 -10 -10 ------------- Run | Yrd Mat Min Turns Passed 2215 | 560 1088 567 Spaces Moved 971 | 263 417 291 Core 4 | 4 . . Treads 967 | 259 417 291 Legs . | . . . Wheels . | . . . Hover . | . . . Flight . | . . . Fastest Speed 50 | 50 160 160 Average Speed 159 | 158 160 160 Slowest Speed 160 | 160 160 160 Overloaded Moves . | . . . Propulsion Burnouts . | . . . Robots Hopped . | . . . Potential Cave-ins . | . . . Cave-ins Triggered . | . . . Exploration Rate (%) 40 | 15 40 66 Regions Visited 2 Branch Regions 1 Pre-discovered Areas . | . . . Known Exits Taken . | . . . Unknown Exits Taken 2 | 1 1 . Scrap Searched 1 | . . 1 Spaces Dug . | . . . Terrain Destroyed . | . . . Melee . | . . . Projectile . | . . . AOE . | . . . Terrain Rammed . | . . . Walls Destroyed . | . . . Machines Disabled . | . . . Actions | -11 -10 -10 --------- Run | Yrd Mat Min Total 1465 | 360 766 339 Wait 344 | 49 289 6 Move 969 | 262 416 291 Hop . | . . . Pick Up 25 | 14 9 2 Fast Attach . | . . . Attach 16 | 8 3 5 Detach 4 | 1 . 3 Swap . | . . . Drop 8 | . 7 1 Fire 99 | 26 42 31 Melee . | . . . Ram . | . . . Kick . | . . . Crush . | . . . Escape Stasis . | . . . Rewire . | . . . Trap . | . . . Miscellaneous . | . . . Route ------- -11/Scrapyard -10/Materials (discovered 2 exits: [*Mat] / [*Min]) -10/Mines (discovered 1 exit: [*Sub]) History --------- Turn | Location | Event 44 | -11/Scrapyard | Discovered new exit (range 15) 561 | -11/Scrapyard | Entered Materials 562 | -10/Materials | Build established: Mutant 1183 | -10/Materials | Discovered new exit (range 16) 1355 | -10/Materials | Discovered new exit (range 14) 1426 | -10/Materials | Repaired Assault Rifle 1649 | -10/Materials | Entered Mines 1686 | -10/Mines | Learned Materials interactive machine intel 1705 | -10/Mines | Core integrity fell below 50% 1803 | -10/Mines | Discovered new exit (range 8) 1910 | -10/Mines | Received a Rocket Launcher from a helpful Derelict 2201 | -10/Mines | Core integrity fell below 20% 2216 | -10/Mines | Destroyed by G-34 Mercenary with Small Laser Last Messages --------------- wall? Leave that to the mining laser wimps, I say!" 01910_ F5-0BW(g): "Would you like a rocket launcher? I know I would if I were you, so I'm going to lend you mine." 01910_ F5-0BW(g) slips back into the shadows. 01919_ Acquired Rocket Launcher. Want a larger map view with more modal windows? Or have a large enough display to fit a bigger map in exchange for smaller text? Consider selecting a different UI Layout in the option menu. 02124_ Searching scrap... 02124_ Found Welding Torch. 02124_ Found Wheel. 02124_ Found Hcp. Matter Pod. 02124_ Found Aluminum Leg. 02124_ Found 50 Matter. 02206_ Lgt. Treads destroyed. 02214_ Assault Rifle destroyed. Map ----- +----------------------------------------------------+ | ????# ####??# | | ????# ##?# #### ######## # | | ???# #?# ##??# #?????## ## | | ??# ## # #???# #????## #? | | ??# ### ### ## #???# #???## #? | | ??## ##??## ##?###?# #???# #??## ## | | ???## #?????###??????# #???# #?## # | | ????# #??????????????# #???# ### | | ????## #???????????????# #???# ## | | ?????###????????????????# #???# | | ????????????????????????# #???# | | ????????????????????????# #???#### | | ????????????????????????# #??????# | | ????????????????????????# #??????## | | ????????????????????????# #??????## | | ????????????????????????# #??????# | | ????????????????????##### #??????# | | ????????????????????# #??????# ##### | | ????????????????????#=! #??????###????# | | ????????????????????#% #####???????????### | | ????????????????????#|=#??????????????## | | ????????????????????# #??????????????# | | ????????????????????# #??????????????# | | ????????????????????# #??????????????## | | ????????????????????# #???????????????#### | | ????????????????????# @#??????????????????## | | ????????????????????# #???????????????????## | | ???????????????????## #???????????????????## | | ????????######????## ##??????????????????# | | ???????## ##???# #??????????????????## | | ???##### ##??# ##??????????????????## | | ???# #### ##??????????????????# | | ???# ##g #?????????????###### | | ???# ##### """ #?????????????# | | ???# #???##### g """ ##?????????????# | | ???# #???????## """ #??????????????# #### | | ???# #????????## g #??????????????# #??? | | ???# #?????????####### #??????????????# #??? | | ???# #????????????????# #?????????????# #??? | | ??? ?????????????????# ???????????## ##?? | | ??? ??????????????????# ????????### ##? | | ??? ""???????????????????# ??????## ## | | ??? ""???????????????????? ?????## # | | ??? ""????????????????????? ?????# % # | | ??? ???????????????????????? ????## * [ | | ??? ?????????????????????????????## =|! ![ | | ??? ?????????????????????????????# ! ! ! | | ??? ????????????????????????????##++## ## | | ????????????????????????????????# # ##? | | ????????????????????????????????# ## #?? | +----------------------------------------------------+ Best States ------------- Heat Dissipation 25 Energy Generation 10 Energy Capacity 125 Matter Stores 300 Matter Capacity 300 Sight Range 16 Terrain Scan Range 16 Terrain Scan Density 10 ECM Strength 1 Armor Coverage 150 Evasion (%) 40 Recoil Reduction 2 Item Schematics ----------------- None Robot Schematics ------------------ None Fabricated ------------ Nothing Repaired ---------- Assault Rifle | 13% | -10/Materials Alien Tech Used ----------------- None Achievements -------------- None Challenges ------------ None Game ------ Seed RecoilChargeRipteeth Manual? 0 Play Time 00:27:32 Cumulative 12.4 hours Start 2025.09.05 @ 23:27:53 End 2025.09.05 @ 23:55:46 Sessions 1 Manual Loads 0 Difficulty Rogue Special Mode None Game No. 11 Rogue 11 Adventurer 0 Explorer 0 Win Type - Total 0 Types 0/0/0/0/0/0/0/0/0/0 Lore% 4 Gallery% 13 Achievement% 12 Wizard Run 0 Options --------- Layout 1 ASCII 0 Keyboard 1 Movement Numpad Keybinds 0 Fullscreen 1 Font 48/Smallcaps Map View 50x35 Zoom Use 0% Tactical HUD 1 Map Filters NONE Filters NONE Steam 1 RUN: bb0a489a-67f8-401a-9410-a88d64ebdb36